bitfinex/quotes_ETHUSD_20250404
["timestamp","ask_amount","ask_price","bid_price","bid_amount"]
[1743804254564,5.50116,1817.8,1817.6,0.41086243]
[1743804254766,24.749,1817.9,1817.8,0.8052]
[1743804254970,24.749,1817.9,1817.8,7.73133599]
[1743804255486,24.749,1817.9,1817.8,7.32047356]
[1743804255779,5.23,1818.3,1818.0,5.50028]
[1743804255982,5.23,1818.3,1818.0,11.00083]
[1743804256177,10.99889,1818.4,1818.1,1.51098374]
[1743804256487,16.22889,1818.4,1818.1,1.51098374]
[1743804256666,10.72935,1818.4,1818.1,1.51098374]
[1743804256852,10.72935,1818.4,1818.2,0.41090074]
[1743804257372,10.72935,1818.4,1818.3,0.41090074]
[1743804257880,5.49996,1818.2,1818.0,0.41090074]
[1743804258082,11.00008,1818.2,1818.0,0.41090074]
[1743804258284,5.50024,1818.1,1818.0,0.41090074]
[1743804261556,5.50061,1818.0,1817.7,0.41090074]
[1743804261756,5.225,1817.9,1817.7,5.50141]
[1743804261957,5.225,1817.9,1817.8,1.76651823]
[1743804262559,5.225,1817.9,1817.8,1.21637723]
[1743804264363,10.72585,1817.9,1817.8,0.41117723]
[1743804265385,5.225,1817.9,1817.8,0.41117723]
[1743804265578,10.72585,1817.9,1817.8,0.41117723]
[1743804268392,5.50117,1817.8,1817.6,0.41117723]
[1743804268894,5.50117,1817.8,1817.7,0.41117723]
[1743804269578,10.72585,1817.9,1817.7,0.41117723]
[1743804269778,5.225,1817.9,1817.7,1.00246995]
[1743804269982,5.225,1817.9,1817.7,6.50378995]
[1743804270182,5.225,1817.9,1817.8,0.7617]
[1743804270494,5.225,1817.9,1817.8,1.17287723]
[1743804272296,5.225,1817.9,1817.8,0.41117723]
[1743804274867,5.225,1817.9,1817.8,0.41125433]
[1743804276173,10.72585,1817.9,1817.8,0.41125433]
[1743804276501,11.48255,1817.9,1817.8,0.41125433]
[1743804276896,5.50236,1817.4,1817.3,0.41125433]
[1743804277099,10.71436,1817.4,1817.3,0.41125433]
[1743804278901,10.71436,1817.4,1817.2,0.41125433]
[1743804279610,10.71436,1817.4,1817.3,0.41125433]
[1743804280178,5.50297,1817.2,1817.1,0.1]
[1743804280909,6.25967,1817.2,1817.1,0.1]
[1743804281680,10.09441563,1817.2,1817.1,0.1]
[1743804282013,10.64441563,1817.2,1817.1,1e-05]
[1743804282770,11.0488806,1817.2,1817.1,1e-05]
[1743804283510,10.09441563,1817.2,1817.1,1e-05]
[1743804283707,10.64441563,1817.2,1817.1,1e-05]
[1743804287413,11.0525129,1817.2,1817.1,1e-05]
[1743804292428,14.0525129,1817.2,1817.1,1e-05]
[1743804293103,17.88725853,1817.2,1817.1,1e-05]
[1743804293331,14.0525129,1817.2,1817.1,1e-05]
[1743804293813,5.50569,1816.3,1816.2,0.8326]
[1743804294170,10.72669,1816.3,1816.2,0.8326]
[1743804296839,30.27011,1816.5,1816.3,0.8326]
[1743804297039,35.49311,1816.5,1816.3,0.8326]
[1743804297247,29.988,1816.5,1816.1,0.9326]
[1743804297427,11.01196,1816.3,1816.1,0.9326]
[1743804297627,5.506,1816.2,1816.1,0.1]
[1743804299415,30.27019,1816.5,1816.2,0.8326]
[1743804299604,10.74656,1816.4,1816.2,0.8326]
[1743804299805,5.50569,1816.3,1816.2,0.8326]
[1743804301459,5.50552,1816.4,1816.2,0.8326]
[1743804301657,5.244,1816.3,1816.2,0.8326]
[1743804305251,5.238,1816.4,1816.3,5.50559]
[1743804305590,5.238,1816.4,1816.3,6.33819]
[1743804305884,30.003,1816.5,1816.4,0.7989]
[1743804306089,35.50809,1816.5,1816.4,0.7989]
[1743804306385,10.74309,1816.5,1816.4,0.7989]
[1743804306706,5.238,1816.5,1816.4,0.7989]
[1743804308340,10.74309,1816.5,1816.4,0.7989]
[1743804309472,10.74309,1816.5,1816.4,1.20927117]
[1743804309974,5.238,1816.5,1816.4,1.20927117]
[1743804311485,10.74309,1816.5,1816.4,1.20927117]
[1743804318376,5.238,1816.5,1816.4,1.20927117]
[1743804319895,10.74309,1816.5,1816.4,1.20927117]
[1743804321493,10.74309,1816.5,1816.4,0.41037117]
[1743804323886,5.207,1816.5,1816.4,1.22477117]
[1743804324264,10.71209,1816.5,1816.4,1.22477117]
[1743804324874,5.207,1816.5,1816.4,1.22477117]
[1743804325465,10.71209,1816.5,1816.4,1.22477117]
[1743804329715,5.50485,1816.6,1816.4,1.22477117]
[1743804329867,5.198,1816.7,1816.6,0.7605]
[1743804330197,5.198,1816.7,1816.6,1.38705]
[1743804330360,5.198,1816.7,1816.6,1.79742117]
[1743804330790,5.199,1816.9,1816.7,5.50444]
[1743804331284,5.199,1816.9,1816.8,0.41037117]
[1743804331487,5.199,1816.9,1816.8,0.41209982]
[1743804331895,5.198,1816.9,1816.8,0.41209982]
[1743804332102,5.53500765,1816.9,1816.8,0.41219309]
[1743804332304,0.33700765,1816.9,1816.8,0.41219309]
[1743804332803,0.33700765,1816.9,1816.8,7.2814294]
[1743804333482,5.84088765,1816.9,1816.8,1.18559309]
[1743804333802,5.84088765,1816.9,1816.8,0.41219309]
[1743804336115,0.33700765,1816.9,1816.8,0.41219309]
[1743804336407,5.84088765,1816.9,1816.8,0.41219309]
[1743804343394,11.34501765,1816.9,1816.6,0.41219309]
[1743804343594,11.34501765,1816.9,1816.7,0.41219309]
[1743804343807,5.50418,1816.8,1816.7,0.41219309]
[1743804344114,5.83808157,1816.8,1816.7,0.41219309]
[1743804351642,6.66098157,1816.8,1816.7,0.41219309]
[1743804352125,11.01125,1816.4,1816.2,0.41219309]
[1743804352319,5.184,1816.3,1816.2,0.41219309]
[1743804352634,5.51634689,1816.3,1816.2,0.41219309]
[1743804359050,5.51634689,1816.3,1816.2,5.91819309]
[1743804359212,0.33234689,1816.3,1816.2,7.9253414]
[1743804359551,5.175,1816.5,1816.3,5.50558]
[1743804359712,5.175,1816.5,1816.3,11.01117]
[1743804359913,5.175,1816.5,1816.4,5.91758309]
[1743804360113,5.175,1816.5,1816.4,6.69458309]
[1743804360312,5.50425,1816.8,1816.4,13.4199894]
[1743804360611,10.68625,1816.8,1816.4,12.19997309]
[1743804361046,16.19058,1816.8,1816.5,0.41219309]
[1743804361648,16.19058,1816.8,1816.6,0.41219309]
[1743804361948,0.33096477,1816.7,1816.6,0.41219309]
[1743804362144,0.33096477,1816.7,1816.6,5.91697309]
[1743804362448,0.33096477,1816.7,1816.6,0.41219309]
[1743804364030,0.33096477,1816.7,1816.6,7.2602874]
[1743804364328,5.177,1816.9,1816.7,5.50448]
[1743804365062,5.177,1816.9,1816.8,0.41219309]
[1743804366533,5.176,1817.0,1816.8,0.41219309]
[1743804366736,5.176,1817.0,1816.8,5.91628309]
[1743804366937,5.176,1817.0,1816.8,0.41219309]
[1743804367137,10.6796,1817.0,1816.9,0.41219309]
[1743804368465,11.4375,1817.0,1816.9,0.41219309]
[1743804368668,5.50418,1816.8,1816.7,0.41219309]
[1743804369246,5.5046,1816.7,1816.5,0.41219309]
[1743804369446,5.50424,1816.8,1816.5,0.41219309]
[1743804369651,11.00871,1816.8,1816.6,0.41219309]
[1743804369848,6.26238,1816.7,1816.6,0.41219309]
[1743804370161,6.26238,1816.7,1816.5,0.41219309]
[1743804370525,6.26238,1816.7,1816.6,0.41219309]
[1743804370928,6.33744,1816.8,1816.6,0.41219309]
[1743804371165,5.504,1816.9,1816.6,0.41219309]
[1743804371535,11.51282,1817.0,1816.8,5.50416]
[1743804371536,5.181,1817.0,1816.8,5.50416]
[1743804371958,5.181,1817.0,1816.9,0.41219309]
[1743804372866,5.181,1817.1,1816.9,5.91604309]
[1743804373071,30.27102,1817.2,1817.0,0.41219309]
[1743804373258,35.45202,1817.2,1817.0,0.41219309]
[1743804373645,35.45202,1817.2,1816.9,6.26004]
[1743804373875,35.45202,1817.2,1816.9,7.436457]
[1743804374236,35.45202,1817.2,1817.0,0.41111485]
[1743804375175,5.50327,1817.1,1817.0,0.41111485]
[1743804375668,11.0067,1817.1,1816.8,0.41111485]
[1743804375876,5.50327,1817.1,1816.8,5.91525485]
[1743804376075,5.50327,1817.1,1816.8,11.41933485]
[1743804376271,35.45203,1817.2,1816.8,12.63689833]
[1743804376576,35.45203,1817.2,1816.9,5.91495485]
[1743804376781,0.33506725,1817.1,1816.9,5.91489485]
[1743804376939,35.45203,1817.2,1817.0,0.41111485]
[1743804377137,0.33506725,1817.1,1817.0,0.41111485]
[1743804377352,35.45203,1817.2,1817.0,0.41111485]
[1743804377547,0.33506725,1817.1,1817.0,0.41111485]
[1743804377869,35.45203,1817.2,1817.0,0.41111485]
[1743804378091,5.83833725,1817.1,1817.0,0.41111485]
[1743804378259,11.34177725,1817.1,1816.9,0.41111485]
[1743804378583,5.50357,1817.0,1816.8,3.41111485]
[1743804378886,11.00741,1817.0,1816.8,0.41111485]
[1743804379059,0.33506725,1816.9,1816.8,0.41111485]
[1743804379266,5.83894725,1816.9,1816.8,0.41111485]
[1743804379783,5.83894725,1816.9,1816.7,0.41111485]
[1743804379984,11.51338,1816.8,1816.7,0.41111485]
[1743804380190,5.50461,1816.7,1816.5,0.41111485]
[1743804380393,0.33506725,1816.6,1816.5,5.91610485]
[1743804380685,16.18458,1816.8,1816.5,5.91610485]
[1743804380854,0.33485137,1816.6,1816.5,5.91610485]
[1743804381053,16.18454,1816.8,1816.5,5.91610485]
[1743804381306,0.33485137,1816.6,1816.5,5.50499]
[1743804381825,10.68018,1816.8,1816.5,7.01692293]
[1743804382091,0.33446274,1816.6,1816.5,7.01692293]
[1743804382546,10.68018,1816.8,1816.5,7.01692293]
[1743804382747,0.33446274,1816.7,1816.6,0.41090993]
[1743804385496,5.83894274,1816.7,1816.6,0.41090993]
[1743804389623,0.33446274,1816.7,1816.6,0.41090993]
[1743804390115,0.33446274,1816.7,1816.6,1.11260922]
[1743804390885,0.33446274,1816.7,1816.6,7.38148922]
[1743804391287,10.6779,1816.9,1816.6,7.38148922]
[1743804391619,11.00862,1816.8,1816.6,1.11260922]
[1743804391820,5.50448,1816.7,1816.6,0.41090993]
[1743804391980,11.34252834,1816.8,1816.7,0.41090993]
[1743804393940,5.50458,1816.7,1816.5,0.41090993]
[1743804394502,0.33385834,1816.6,1816.4,6.26938]
[1743804394716,0.33385834,1816.6,1816.5,0.41168817]
[1743804394915,5.50458,1816.7,1816.5,1.07979499]
[1743804395140,0.33385834,1816.6,1816.5,0.66810682]
[1743804395438,5.50458,1816.7,1816.5,0.66810682]
[1743804395608,0.33385834,1816.6,1816.5,0.66810682]
[1743804395813,11.00859,1816.8,1816.5,0.66810682]
[1743804396017,0.33385834,1816.6,1816.5,0.66810682]
[1743804396330,5.50448,1816.7,1816.5,1.07978725]
[1743804396537,0.33385834,1816.6,1816.5,1.07978725]
[1743804396900,5.50448,1816.7,1816.5,1.07978725]
[1743804397238,0.33385834,1816.6,1816.5,0.66810682]
[1743804397734,5.50448,1816.7,1816.5,1.07981102]
[1743804397943,0.33385834,1816.6,1816.5,1.07981102]
[1743804398306,5.50448,1816.7,1816.5,1.07981102]
[1743804398542,0.33385834,1816.6,1816.5,0.66810682]
[1743804399042,0.33385834,1816.6,1816.5,1.07981518]
[1743804399209,5.50448,1816.7,1816.5,1.07981518]
[1743804399409,5.50448,1816.7,1816.6,0.41170836]
[1743804406942,5.83807925,1816.7,1816.6,0.41170836]
[1743804409572,6.65167925,1816.7,1816.6,0.41170836]
[1743804409934,5.50579,1816.3,1816.1,3.1]
[1743804410434,0.33239014,1816.2,1816.1,3.1]
[1743804410865,0.33239014,1816.2,1816.1,3.51225293]
[1743804412245,5.83839014,1816.2,1816.1,0.51225293]
[1743804412449,7.18970815,1816.2,1816.1,0.51225293]
[1743804413272,7.18970815,1816.2,1816.1,0.1]
[1743804413643,6.60589014,1816.2,1816.1,0.1]
[1743804413971,5.83839014,1816.2,1816.1,0.1]
[1743804417975,10.44744901,1816.2,1816.1,0.1]
[1743804418174,6.27471,1815.8,1815.7,0.41225293]
[1743804418355,11.44971,1815.8,1815.7,0.41225293]
[1743804418556,11.7773913,1815.8,1815.7,0.41225293]
[1743804419148,11.0100413,1815.8,1815.5,0.7957]
[1743804419350,5.50782,1815.6,1815.4,0.41225293]
[1743804419549,11.0158,1815.6,1815.3,6.71665293]
[1743804419854,0.32690331,1815.5,1815.3,6.71665293]
[1743804420255,0.32690331,1815.5,1815.3,1.20795293]
[1743804420763,0.32690331,1815.5,1815.3,6.71660293]
[1743804423382,0.32690331,1815.5,1815.3,6.71653293]
[1743804424400,0.32690331,1815.5,1815.3,12.22514293]
[1743804424583,0.32690331,1815.5,1815.3,8.32320311]
[1743804425081,0.32690331,1815.5,1815.3,13.83184311]
[1743804425383,0.32690331,1815.5,1815.3,7.91095018]
[1743804425969,0.32690331,1815.5,1815.3,13.41958018]
[1743804426174,0.32690331,1815.5,1815.3,13.39199018]
[1743804426376,11.01524,1815.7,1815.3,7.88336018]
[1743804426573,0.31397931,1815.4,1815.3,13.39195018]
[1743804426897,0.31397931,1815.4,1815.3,13.80195332]
[1743804427048,11.01524,1815.7,1815.3,13.80195332]
[1743804427249,0.31397931,1815.4,1815.3,13.80195332]
[1743804427450,11.01524,1815.7,1815.3,8.29336332]
[1743804427650,0.31397931,1815.4,1815.3,13.80197332]
[1743804427886,5.50756,1815.7,1815.3,13.80197332]
[1743804428190,0.31397931,1815.4,1815.3,13.80197332]
[1743804428352,11.01522,1815.7,1815.4,0.41000314]
[1743804428548,5.50784,1815.6,1815.4,0.41000314]
[1743804428753,5.50784,1815.6,1815.3,6.27669]
[1743804429075,6.30121,1815.7,1815.3,0.76811]
[1743804429277,5.50859,1815.4,1815.1,9.41312]
[1743804429496,5.177,1815.3,1815.1,9.41312]
[1743804429870,5.177,1815.3,1815.1,9.82312314]
[1743804430270,5.177,1815.3,1815.1,15.33231314]
[1743804430556,11.8089,1815.7,1815.3,5.50859]
[1743804430768,10.68496,1815.6,1815.3,1.21390314]
[1743804431095,11.0165,1815.5,1815.3,0.41000314]
[1743804431270,11.0165,1815.5,1815.1,8.60919]
[1743804431469,5.50849,1815.4,1815.1,8.60919]
[1743804431869,6.32409,1815.4,1815.1,3.51003514]
[1743804432071,5.50875,1815.3,1815.1,3.51003514]
[1743804432277,11.83268,1815.4,1815.1,3.51003514]
[1743804432577,6.32409,1815.4,1815.1,3.51003514]
[1743804432886,6.32409,1815.4,1815.1,9.01931514]
[1743804433584,6.32409,1815.4,1815.1,3.51003514]
[1743804433883,5.50873,1815.3,1815.1,3.51003514]
[1743804434057,10.68603,1815.2,1815.1,0.1]
[1743804435292,5.50814,1815.5,1815.1,6.41458]
[1743804435499,5.179,1815.3,1815.1,6.41458]
[1743804435700,5.179,1815.3,1815.1,6.82461514]
[1743804436197,5.179,1815.3,1815.1,12.33380514]
[1743804436787,5.179,1815.3,1815.2,5.91906514]
[1743804437094,5.179,1815.3,1815.2,6.6717005]
[1743804437273,5.181,1815.5,1815.3,5.50848]
[1743804438690,5.181,1815.5,1815.4,6.31492]
[1743804439222,5.181,1815.5,1815.4,6.72495514]
[1743804439386,24.781,1815.8,1815.5,5.50789]
[1743804439586,29.962,1815.8,1815.5,5.50789]
[1743804439917,24.781,1815.8,1815.6,5.91780514]
[1743804440091,24.781,1815.8,1815.7,6.31401]
[1743804440297,24.781,1815.8,1815.7,6.72404514]
[1743804442821,24.781,1815.8,1815.7,9.72404514]
[1743804444615,6.31444,1816.3,1815.9,5.50663]
[1743804444823,5.811444,1816.2,1816.0,0.41003514]
[1743804445998,5.811444,1816.2,1816.0,5.91660514]
[1743804448223,5.18,1816.2,1816.0,5.91660514]
[1743804450029,5.18,1816.2,1816.0,11.42306514]
[1743804450233,5.18,1816.2,1816.1,0.41003514]
[1743804450731,5.18,1816.2,1816.1,5.91633514]
[1743804452130,5.49631339,1816.2,1816.1,5.91633514]
[1743804458119,5.49231339,1816.2,1816.1,5.91633514]
[1743804459555,5.49231339,1816.2,1816.1,0.41003514]
[1743804460340,5.49231339,1816.2,1816.1,5.91633514]
[1743804462949,0.31631339,1816.2,1816.1,5.91633514]
[1743804463257,0.31631339,1816.2,1816.1,7.13674465]
[1743804467853,0.31358776,1816.2,1816.1,7.13674465]
[1743804469356,5.176,1816.4,1816.3,5.50569]
[1743804469649,5.49251842,1816.4,1816.3,5.50569]
[1743804470055,5.49251842,1816.4,1816.3,5.91572514]
[1743804470214,5.49251842,1816.4,1816.3,7.05789665]
[1743804470414,5.49251842,1816.4,1816.3,7.87159665]
[1743804471853,0.31651842,1816.4,1816.3,7.87159665]
[1743804472155,10.67982,1816.6,1816.3,7.87159665]
[1743804472336,0.3173825,1816.5,1816.3,7.87159665]
[1743804472660,6.6400725,1816.5,1816.4,0.41003514]
[1743804476971,5.8224725,1816.5,1816.4,0.41003514]
[1743804477153,10.9974725,1816.5,1816.4,0.41003514]
[1743804478669,5.4923825,1816.5,1816.4,0.41003514]
[1743804480041,10.9974725,1816.5,1816.4,0.41003514]
[1743804480344,11.8158725,1816.5,1816.4,0.41003514]
[1743804484188,6.6408725,1816.5,1816.4,0.41003514]
[1743804484345,10.9974725,1816.5,1816.4,0.41003514]
[1743804485052,5.4923825,1816.5,1816.4,0.41003514]
[1743804485355,10.9974725,1816.5,1816.4,0.41003514]
[1743804490088,11.8223725,1816.5,1816.4,0.41003514]
[1743804507414,10.9974725,1816.5,1816.4,0.41003514]
[1743804507586,0.3173825,1816.5,1816.4,0.41003514]
[1743804507776,5.4923825,1816.5,1816.4,0.41003514]
[1743804508314,0.3173825,1816.5,1816.4,0.41003514]
[1743804508614,5.175,1816.7,1816.4,6.82280263]
[1743804508798,0.29199484,1816.6,1816.5,8.66326976]
[1743804508975,35.44895,1816.9,1816.6,6.27257]
[1743804509172,0.29203819,1816.8,1816.6,11.77725]
[1743804509371,0.29203819,1816.8,1816.7,6.682205]
[1743804509574,0.29203819,1816.8,1816.7,10.2504199]
[1743804510619,0.29203819,1816.8,1816.7,13.2504199]
[1743804511717,0.29203819,1816.8,1816.7,14.69803307]
[1743804512592,0.7976,1817.5,1817.1,5.50309]
[1743804512593,6.29967,1817.5,1817.1,5.50309]
[1743804512791,0.29368495,1817.4,1817.2,6.851459]
[1743804513013,0.29368495,1817.4,1817.2,7.26135414]
[1743804513343,0.29368495,1817.4,1817.3,0.41003514]
[1743804513547,0.29368495,1817.4,1817.3,1.68645255]
[1743804515055,0.29368495,1817.4,1817.3,7.18911255]
[1743804515259,0.29368495,1817.4,1817.3,10.98731255]
[1743804515409,0.1,1817.9,1817.7,5.50132]
[1743804515609,0.1,1817.9,1817.8,0.7982]
[1743804516219,0.1,1817.9,1817.8,6.929302]
[1743804518940,0.1,1817.9,1817.8,6.98430865]
[1743804519662,0.1,1817.9,1817.8,10.82220158]
[1743804519953,0.1,1817.9,1817.8,10.76719493]
[1743804520548,0.1,1817.9,1817.8,13.76719493]
[1743804522563,0.1,1817.9,1817.8,1.428152]
[1743804523559,0.1,1817.9,1817.8,6.929302]
[1743804525058,0.1,1817.9,1817.8,13.82219946]
[1743804525233,0.1,1817.9,1817.8,13.76719493]
[1743804526776,0.40589782,1817.9,1817.8,13.76719493]
[1743804528678,0.40589782,1817.9,1817.8,9.929302]
[1743804534776,0.40589782,1817.9,1817.8,6.929302]
[1743804536978,0.40589782,1817.9,1817.8,7.33807836]
[1743804540353,0.40589782,1817.9,1817.8,11.23097609]
[1743804540680,24.749,1818.6,1817.8,11.23097609]
[1743804540681,31.05248,1818.6,1818.3,5.49963]
[1743804540844,36.22148,1818.6,1818.3,5.49963]
[1743804541049,36.22148,1818.6,1818.4,0.40877636]
[1743804541661,36.22148,1818.6,1818.3,5.49952]
[1743804541980,0.28140155,1818.5,1818.3,5.49952]
[1743804542184,0.28140155,1818.5,1818.3,6.676399]
[1743804542587,0.28140155,1818.5,1818.4,0.41066429]
[1743804544769,0.28140155,1818.5,1818.4,5.91000429]
[1743804544966,0.28140155,1818.5,1818.4,0.41066429]
[1743804549370,0.28140155,1818.5,1818.4,5.91000429]
[1743804549592,0.28140155,1818.5,1818.4,7.2103338]
[1743804549881,0.28140155,1818.5,1818.4,1.7109938]
[1743804550588,0.28140155,1818.5,1818.4,0.41066429]
[1743804553217,6.61163155,1818.5,1818.4,0.41066429]
[1743804554083,0.28140155,1818.5,1818.4,0.41066429]
[1743804556214,0.28140155,1818.5,1818.4,5.91000429]
[1743804556413,6.2545,1818.7,1818.4,5.91000429]
[1743804556616,0.28581364,1818.6,1818.4,7.05095472]
[1743804556917,0.28581364,1818.6,1818.5,0.41066429]
[1743804557615,5.78454364,1818.6,1818.5,0.41066429]
[1743804558114,5.78454364,1818.6,1818.3,5.4995]
[1743804558498,5.78454364,1818.6,1818.4,0.41025249]
[1743804559288,5.78454364,1818.6,1818.5,0.7687]
[1743804559289,0.28581364,1818.6,1818.5,0.7687]
[1743804559533,0.28581364,1818.6,1818.5,5.90928249]
[1743804559907,5.49816,1818.8,1818.5,5.90928249]
[1743804560536,0.28602985,1818.7,1818.6,0.41025249]
[1743804567896,0.28602985,1818.7,1818.6,5.90898249]
[1743804568093,0.1,1818.9,1818.7,5.49842]
[1743804568298,0.1,1818.9,1818.7,10.99666]
[1743804568596,0.1,1818.9,1818.8,0.41025249]
[1743804568905,0.1,1818.9,1818.8,5.90838249]
[1743804569603,0.1,1818.9,1818.8,5.96335999]
[1743804569799,0.1,1818.9,1818.8,13.57501678]
[1743804569994,0.1,1818.9,1818.8,17.34181678]
[1743804571823,0.38935879,1818.9,1818.8,17.89181678]
[1743804572031,0.1,1818.9,1818.8,17.89181678]
[1743804572215,0.38935879,1818.9,1818.8,17.89181678]
[1743804573334,0.1,1818.9,1818.8,17.89181678]
[1743804576939,0.1,1818.9,1818.8,23.05781678]
[1743804578007,0.1,1818.9,1818.8,17.34181678]
[1743804578213,0.39203757,1818.9,1818.8,17.34181678]
[1743804580622,0.1,1818.9,1818.8,17.34181678]
[1743804581848,0.1,1818.9,1818.8,17.89181678]
[1743804585269,0.1,1818.9,1818.8,17.34181678]
[1743804586242,10.92347,1819.4,1819.0,5.49732]
[1743804586466,10.92347,1819.4,1819.1,3.549732]
[1743804586467,0.29432796,1819.3,1819.1,3.549732]
[1743804586655,11.28775796,1819.3,1819.1,3.95998449]
[1743804586857,5.79099796,1819.3,1819.1,3.95998449]
[1743804589374,0.7522,1819.2,1819.1,3.95998449]
[1743804589860,1.04652796,1819.2,1819.1,3.95998449]
[1743804591279,0.29432796,1819.2,1819.1,13.29509742]
[1743804591451,6.30507,1819.4,1819.1,13.29509742]
[1743804591653,0.29432796,1819.3,1819.2,1.32950974]
[1743804591973,0.29432796,1819.3,1819.2,1.73976223]
[1743804592164,0.29432796,1819.3,1819.2,7.23668223]
[1743804592582,0.29432796,1819.3,1819.2,1.73976223]
[1743804594396,5.79093796,1819.3,1819.2,0.41025249]
[1743804600221,0.29432796,1819.3,1819.2,0.41025249]
[1743804602215,0.29432796,1819.3,1819.2,5.90717249]
[1743804602616,11.78229,1819.6,1819.2,5.90704249]
[1743804602795,0.27033846,1819.3,1819.2,5.90704249]
[1743804603113,0.27033846,1819.3,1819.2,7.73125203]
[1743804603416,5.49614,1819.5,1819.2,7.73125203]
[1743804603582,0.27033846,1819.3,1819.2,7.73125203]
[1743804603785,5.49614,1819.5,1819.3,0.41025249]
[1743804604211,5.49614,1819.5,1819.4,0.41025249]
[1743804610636,6.04512,1819.8,1819.4,1.20645249]
[1743804610637,0.55,1819.8,1819.4,1.20645249]
[1743804610844,0.55,1819.8,1819.6,5.49557]
[1743804611054,0.55,1819.8,1819.6,6.97851529]
[1743804611536,0.55,1819.8,1819.7,0.41025249]
[1743804614055,6.0451,1819.8,1819.7,0.41025249]
[1743804614349,6.8658,1819.8,1819.7,0.41025249]
[1743804616965,7.13872992,1819.8,1819.7,0.41025249]
[1743804619073,5.49541,1819.7,1819.5,0.41025249]
[1743804619252,5.49541,1819.7,1819.5,1.63013474]
[1743804619454,0.27292992,1819.6,1819.5,1.63013474]
[1743804619629,5.49541,1819.7,1819.5,1.21988225]
[1743804619850,5.76863992,1819.6,1819.3,17.83095293]
[1743804620052,0.27292992,1819.6,1819.3,17.83092293]
[1743804620291,10.99109,1819.7,1819.3,17.83092293]
[1743804620587,10.99109,1819.7,1819.4,0.41005463]
[1743804620788,0.27292992,1819.6,1819.4,11.45748179]
[1743804620954,0.27292992,1819.6,1819.5,7.44575818]
[1743804621157,11.54046,1819.8,1819.5,7.85581281]
[1743804621474,11.54046,1819.8,1819.5,7.44575818]
[1743804621674,0.27292992,1819.7,1819.5,7.44575818]
[1743804622072,0.27292992,1819.7,1819.5,1.94974818]
[1743804622463,0.27292992,1819.7,1819.6,0.4100398]
[1743804622901,5.76833992,1819.7,1819.6,0.4100398]
[1743804623697,5.76833992,1819.7,1819.6,9.74364273]
[1743804623698,0.27292992,1819.7,1819.6,9.74364273]
[1743804623904,0.27292992,1819.7,1819.6,21.68152388]
[1743804624200,0.27292992,1819.7,1819.6,21.62656982]
[1743804629381,0.55,1819.8,1819.7,6.29941]
[1743804629583,0.55,1819.8,1819.7,6.84941]
[1743804629783,0.82590895,1819.8,1819.7,6.84941]
[1743804629993,0.82590895,1819.8,1819.7,10.02664778]
[1743804631522,0.96778956,1819.8,1819.7,13.31454071]
[1743804632422,0.96778956,1819.8,1819.7,13.31366394]
[1743804632624,0.96778956,1819.8,1819.7,13.73399518]
[1743804633119,0.96778956,1819.8,1819.7,14.28399518]
[1743804633291,0.96778956,1819.8,1819.7,20.34399518]
[1743804638428,0.96778956,1819.8,1819.7,19.79399518]
[1743804643191,0.55,1819.8,1819.7,19.79399518]
[1743804643392,0.95799667,1819.8,1819.7,12.38490427]
[1743804643818,0.95799667,1819.8,1819.7,16.2227972]
[1743804644030,0.55,1819.8,1819.7,16.2227972]
[1743804644329,0.95747873,1819.8,1819.7,16.2227972]
[1743804645748,0.95747873,1819.8,1819.7,14.76510662]
[1743804646052,0.95747873,1819.8,1819.7,17.29308099]
[1743804649760,0.95747873,1819.8,1819.7,6.88949427]
[1743804650055,6.45257873,1819.8,1819.7,6.46916303]
[1743804650829,6.45257873,1819.8,1819.7,0.40916303]
[1743804651173,6.0451,1819.8,1819.7,0.40916303]
[1743804651633,1.7830334,1819.8,1819.7,0.40916303]
[1743804656973,7.2781334,1819.8,1819.7,0.40916303]
[1743804658590,1.7830334,1819.8,1819.7,0.40916303]
[1743804658899,7.2781334,1819.8,1819.7,0.40916303]
[1743804660179,1.7830334,1819.8,1819.7,0.40916303]
[1743804660395,7.2781334,1819.8,1819.7,0.40916303]
[1743804662203,1.7830334,1819.8,1819.7,0.40916303]
[1743804665304,0.9571334,1819.8,1819.7,0.40916303]
[1743804665454,0.9571334,1819.8,1819.7,10.69474729]
[1743804666900,0.9571334,1819.8,1819.7,10.63980022]
[1743804668200,0.9571334,1819.8,1819.7,11.05548928]
[1743804668506,0.9571334,1819.8,1819.7,17.11548928]
[1743804670866,0.9571334,1819.8,1819.7,16.35888928]
[1743804671067,0.9571334,1819.8,1819.7,15.38026209]
[1743804672608,0.9571334,1819.8,1819.7,0.40916303]
[1743804672609,7.2275334,1819.8,1819.7,0.40916303]
[1743804673296,5.49612,1819.5,1819.3,0.40916303]
[1743804673468,6.27161,1819.4,1819.3,0.40916303]
[1743804673670,6.6430044,1819.4,1819.3,0.40916303]
[1743804675069,1.1466944,1819.4,1819.3,0.40916303]
[1743804677305,0.3713944,1819.4,1819.3,0.40916303]
[1743804677606,5.49543,1819.7,1819.5,5.4959]
[1743804677607,0.7687,1819.7,1819.5,5.4959]
[1743804677783,6.04514,1819.8,1819.5,5.4959]
[1743804677784,0.55,1819.8,1819.5,10.99177]
[1743804678105,0.55,1819.8,1819.5,5.49587]
[1743804678266,6.04511,1819.8,1819.6,0.4096172]
[1743804678788,6.04511,1819.8,1819.7,0.4096172]
[1743804679600,5.49541,1819.7,1819.6,0.4096172]
[1743804679993,5.49541,1819.7,1819.5,0.4096172]
[1743804680398,5.49541,1819.7,1819.6,0.4096172]
[1743804680999,0.7687,1819.7,1819.6,0.4096172]
[1743804681223,6.04511,1819.8,1819.6,0.4096172]
[1743804681701,5.49541,1819.7,1819.4,9.28849]
[1743804681880,5.49541,1819.7,1819.4,10.766994]
[1743804682205,5.49541,1819.7,1819.5,0.40965667]
[1743804682399,5.49541,1819.7,1819.6,0.40965667]
[1743804682915,5.49541,1819.7,1819.5,0.40965667]
[1743804683681,5.49571,1819.6,1819.4,4.478504]
[1743804683883,0.7687,1819.5,1819.2,5.49687]
[1743804684082,6.26489,1819.5,1819.3,0.40972192]
[1743804684702,6.26489,1819.5,1819.4,0.40972192]
[1743804685073,6.26489,1819.5,1819.3,0.40972192]
[1743804685769,6.26489,1819.5,1819.4,0.40972192]
[1743804686467,5.49652,1819.4,1819.2,0.40972192]